Cogmind - Beta 17 @@@ ROGUE MODE // 2026.06.27 @ 21:41:18 Player: pinbox Result: Destroyed by X-62 Marksman with Gauss Rifle Performance ------------- Evolutions (3) 1500 Regions Visited (6) 1200 Robots Destroyed (35) 175 Value Destroyed (1379) 1379 Prototype IDs (4) 80 Alien Tech Used (0) 0 Bonus (900) 900 TOTAL SCORE: 5234 Bonus ------- Pacifist 200 Entered Garrisons 200 Entered DSFs 500 Cogmind --------- Core Integrity 0/700 Matter 14/300 Energy 96/100 System Corruption 6% Temperature Cool (0) Movement Core (300) Ox5 Location -7/Garrison Parts ------- > --- POWER (1) -------- (None) > --- PROPULSION (3) --- (None) > --- UTILITY (5) ------ Medium Storage Unit Improved Targeting Computer Advanced Targeting Computer Target Analyzer > --- WEAPON (4) ------- Gauss Cannon > --- INVENTORY (10) --- Light Nuclear Core Advanced Heat Sink Improved Terrain Scanner Target Analyzer Target Analyzer Authchip [Device] Heavy Machine Gun Gauss Cannon Gauss Cannon Peak State ------------ > --- POWER ------------ Angular Momentum Engine > --- PROPULSION ------- Flexi-carbon Leg Flexi-carbon Leg Flexi-carbon Leg > --- UTILITY ---------- Medium Storage Unit Improved Targeting Computer Advanced Targeting Computer Target Analyzer Weapon Cycler > --- WEAPON ----------- Gauss Cannon Gauss Cannon Gauss Cannon Gauss Cannon > --- INVENTORY -------- Deuterium Engine Improved Terrain Scanner Improved Terrain Scanner Transport Network Coupler Target Analyzer Target Analyzer Hacking Suite Heavy Machine Gun Gauss Cannon Gauss Cannon [Rating: 52] Favorites ----------- Power Ion Engine Engine Ion Engine Propulsion Flexi-carbon Leg Treads Light Treads Leg Flexi-carbon Leg Flight Unit Improved VTOL Module Utility Hacking Suite Device Improved Terrain Scanner Storage Small Storage Unit Processor Improved Targeting Computer Hackware Hacking Suite Weapon Gauss Cannon Energy Gun Pulse Rifle Ballistic Gun Improved Assault Rifle Ballistic Cannon Gauss Cannon Build | -11 -10 -9 -8 -7 -7 -7 ------- Run | Yrd Mat Mat Mat Fac DSF Gar Slots Evolved 6 | . . 2 2 2 . . Power . | . . . . . . . Propulsion 1 | . . . 1 . . . Utility 3 | . . 2 1 . . . Weapon 2 | . . . . 2 . . Parts Attached 48 | 6 . 18 4 2 16 2 Power 7 | 1 . 3 1 . 1 1 Engine 7 | 1 . 3 1 . 1 1 Core . | . . . . . . . Reactor . | . . . . . . . Propulsion 11 | 2 . 6 . . 3 . Treads 2 | . . 2 . . . . Leg 5 | 2 . . . . 3 . Wheel . | . . . . . . . Hover . | . . . . . . . Flight 4 | . . 4 . . . . Utility 14 | 1 . 5 2 2 3 1 Device 5 | . . 2 . . 2 1 Storage 2 | 1 . . 1 . . . Processor 4 | . . . 1 2 1 . Hackware 3 | . . 3 . . . . Protection . | . . . . . . . Artifact . | . . . . . . . Weapon 16 | 2 . 4 1 . 9 . Energy Gun 5 | . . 1 . . 4 . Energy Cannon . | . . . . . . . Ballistic Gun 7 | 2 . 3 1 . 1 . Ballistic Cannon 4 | . . . . . 4 . Launcher . | . . . . . . . Special Weapon . | . . . . . . . Impact Weapon . | . . . . . . . Slashing Weapon . | . . . . . . . Piercing Weapon . | . . . . . . . Special Melee Weapon . | . . . . . . . Unidentified Prototypes 4 | . . 3 1 . . . Corrupted Parts 1 | . . 1 . . . . System Corruption 1 | . . 1 . . . . Parts Lost 27 | . . 8 1 . 8 10 Power 4 | . . 2 . . . 2 Propulsion 7 | . . 2 1 . 1 3 Utility 5 | . . 2 . . 1 2 Weapon 11 | . . 2 . . 6 3 Highest Loss Streak 9 | . . 6 1 . 7 9 To Critical Strikes 1 | . . . . . 1 . Average Backups 6 | . 1 6 6 7 7 9 Power . | . 1 . . 1 1 . Propulsion . | . . 1 1 . . . Utility 3 | . . 3 3 5 5 5 Weapon 1 | . . . 1 1 1 3 Tool/Special . | . . . . . . . Unused Backups 12 | . . . 1 . 2 9 Power 2 | . . . . . . 2 Propulsion . | . . . . . . . Utility 7 | . . . . . 2 5 Weapon 3 | . . . 1 . . 2 Tool/Special . | . . . . . . . Average Slot Usage (%) 87 | . 85 86 88 68 77 96 Engine 8 | . 14 9 9 7 7 5 Treads 6 | . . 8 16 7 3 . Leg 10 | . 28 6 . . 5 21 Flight 1 | . . 4 . . . . Device 6 | . . 6 9 . 7 6 Storage 9 | . 14 11 9 7 7 7 Processor 10 | . . . 9 11 21 23 Hackware 10 | . . 21 18 15 1 . Energy Gun 1 | . . 1 . . 5 . Ballistic Gun 13 | . 28 16 18 19 12 . Ballistic Cannon 7 | . . . . . 5 29 Peak Build Rating 52 | 6 6 24 26 27 52 52 Average Rating 25 | 4 6 17 23 24 32 49 On Entrance 19 | . 6 6 21 24 27 52 Avg Prop Armor Cover (%) . | . . . . . . . Naked Turns . | . . . . . . . Heaviest Build 52 | 13 13 17 26 28 52 52 Greatest Support 60 | 20 20 40 40 20 60 60 Greatest Overweight (x) 10 | . . 4 1 1 7 10 Average Overweight (x) . | . . . . 1 1 . Largest Inventory Capacity 10 | 8 8 8 10 10 10 10 Average Capacity 8 | 6 8 8 8 10 10 10 Most Carried 10 | 2 1 8 8 7 10 10 Average Carried 6 | . 1 6 6 5 7 9 Final Capacity 10 | 8 8 8 10 10 10 10 Final Carried 10 | 1 1 7 7 5 10 9 Class Distribution -------------------- 42% | Hacker-Mutant 25% | Scavenger-Gunner 16% | Mutant 10% | Gunner 5% | Hacker-Sprinter Dominant Class ---------------- Mutant | -10/Materials Hacker-Mutant | -9/Materials Hacker-Mutant | -8/Materials Hacker-Mutant | -7/Factory Gunner | -7/DSF Scavenger-Gunner | -7/Garrison Resources | -11 -10 -9 -8 -7 -7 -7 ----------- Run | Yrd Mat Mat Mat Fac DSF Gar Matter Collected 1270 | 211 . 266 244 . 244 305 Remotely . | . . . . . . . Salvage Created 1112 | . . 384 316 . 251 161 Parts 48 | . . 21 16 . 8 3 Haulers Intercepted 1 | . . . 1 . . . Recyclers Shooed 2 | . . 1 1 . . . Parts Field Recycled . | . . . . . . . Retrieved Matter . | . . . . . . . Parts Self-Destructed . | . . . . . . . Prevented . | . . . . . . . Parts Restored . | . . . . . . . Kills | -11 -10 -9 -8 -7 -7 -7 ------- Run | Yrd Mat Mat Mat Fac DSF Gar Combat Hostiles Destroyed 29 | . . 8 5 . 7 9 Guns 19 | . . 7 5 . 7 . Cannons 9 | . . . . . . 9 AOE 1 | . . 1 . . . . Classes Destroyed 10 | . . 5 2 . 2 1 Worker 2 | . . 1 1 . . . Hauler 1 | . . . 1 . . . Recycler 2 | . . 1 1 . . . Watcher 1 | . . . 1 . . . Swarmer 9 | . . 3 3 . 3 . Grunt 14 | . . 3 2 . 2 7 Sentry 3 | . . 2 . . . 1 Specialist 1 | . . . . . 1 . Programmer 1 | . . . . . . 1 Heavy 1 | . . . . . 1 . Best Kill Streak 6 | . . 4 6 . 3 4 Combat Bots Only 4 | . . 3 3 . 3 4 Max Kills in Single Turn 2 | . . 2 1 . 1 2 Gunslinging . | . . . . . . . Exploded 1 | . . 1 . . . . Melee . | . . . . . . . Uniques/NPCs Destroyed . | . . . . . . . Combat | -11 -10 -9 -8 -7 -7 -7 -------- Run | Yrd Mat Mat Mat Fac DSF Gar Hostile Shots Fired 359 | . 32 115 27 . 75 110 Missed 99 | . 9 39 9 . 16 26 Hits 260 | . 23 76 18 . 59 84 Projectile 260 | . 23 76 18 . 59 84 Critical Strikes 4 | . . 1 . . 3 . Damage Taken 4064 | . 224 899 193 . 1320 1428 Core 1024 | . 40 243 27 . 425 289 Absorbed by Shields 58 | . . . . . 58 . Core Remaining (%) 79 | 100 84 39 95 . . . Volleys Fired 97 | . . 28 20 . 21 28 Largest 4 | . . 2 2 . 4 4 Hottest 214 | . . 63 48 . 214 160 Shots Fired 253 | . . 55 40 . 60 98 Gun 155 | . . 55 40 . 60 . Cannon 98 | . . . . . . 98 Launcher . | . . . . . . . Special . | . . . . . . . Kinetic 204 | . . 44 40 . 22 98 Thermal 38 | . . . . . 38 . Explosive . | . . . . . . . Electromagnetic 11 | . . 11 . . . . Robot Hit Streak 31 | . . 18 11 . 31 11 Robot Miss Streak 3 | . . 2 3 . 2 3 Penetration Max 1 | . . . . . . 1 Secondary Targets 6 | . . 1 3 . 2 . Max Gunslinging Chain 1 | . . 1 1 . 1 . Shots Hit Robots 168 | . . 44 23 . 53 48 Core Hits 61 | . . 15 14 . 16 16 Critical Kills . | . . . . . . . Critical Parts Destroyed . | . . . . . . . Critical Strikes 9 | . . . . . . 9 Blast 9 | . . . . . . 9 Melee Attacks . | . . . . . . . Impact . | . . . . . . . Slashing . | . . . . . . . Piercing . | . . . . . . . Sneak Attacks . | . . . . . . . Combat Hostiles . | . . . . . . . Follow-up Attacks . | . . . . . . . Damage Inflicted 3816 | . . 712 465 . 912 1727 Guns 2008 | . . 631 465 . 912 . Cannons 1706 | . . . . . . 1706 Explosions 62 | . . 62 . . . . Melee . | . . . . . . . Ramming 40 | . . 19 . . . 21 Kinetic 3017 | . . 519 465 . 327 1706 Thermal 647 | . . 62 . . 585 . Explosive . | . . . . . . . Electromagnetic 112 | . . 112 . . . . Impact . | . . . . . . . Slashing . | . . . . . . . Piercing . | . . . . . . . Highest Corruption 6 | . . 1 . . . 6 Average Corruption 1 | . . 1 . . . 4 Corruption Purged . | . . . . . . . Corruption Blocked . | . . . . . . . Effects 1 | . . . . . . 1 Matter Fused 1 | . . . . . . 1 Overload Shots . | . . . . . . . Overflow Damage 31 | . . 3 . . . 28 Projectiles 28 | . . . . . . 28 Explosions 3 | . . 3 . . . . Melee . | . . . . . . . Knockbacks 6 | . . . . . . 6 Impact . | . . . . . . . Kinetic 6 | . . . . . . 6 Secondary . | . . . . . . . Self-Inflicted Damage 8 | . . 8 . . . . Shots . | . . . . . . . Rammed 3 | . . 3 . . . . Targets Rammed 9 | . . 5 . . . 4 Kicked 6 | . . 2 . . . 4 Crushed . | . . . . . . . Highest Temperature 536 | . . 22 12 . 536 531 Average Temperature 199 | . . 8 7 . 214 228 Received Heat Transfer 879 | . 72 360 45 . . 402 Effects 17 | . . . . . 4 13 Shutdowns 4 | . . . . . 2 2 Energy Bleed 1 | . . . . . . 1 Interference 5 | . . . . . . 5 Matter Decay 2 | . . . . . . 2 Short Circuit 1 | . . . . . 1 . Damage (minor) 2 | . . . . . . 2 Damage (major) 2 | . . . . . 1 1 Siege Activations . | . . . . . . . Martial Activations . | . . . . . . . Shielding Activations . | . . . . . . . Robots Disrupted . | . . . . . . . Combat Hostiles . | . . . . . . . Robots Corrupted . | . . . . . . . Combat Hostiles . | . . . . . . . Parts Fried . | . . . . . . . Impact Corruptions . | . . . . . . . Robots Melted . | . . . . . . . Combat Hostiles . | . . . . . . . Parts Melted . | . . . . . . . Heat Transferred 1395 | . . 100 . . 1295 . Parts Sabotaged . | . . . . . . . Parts Stolen . | . . . . . . . Parts Stripped . | . . . . . . . Power Chain Reactions 1 | . . 1 . . . . Alert | -11 -10 -9 -8 -7 -7 -7 ------- Run | Yrd Mat Mat Mat Fac DSF Gar Maximum Alert Level 1 | . . 1 . . . 1 Low Security (%) 86 | 100 100 95 100 100 100 40 Level 1 13 | . . 4 . . . 59 Level 2 . | . . . . . . . Level 3 . | . . . . . . . Level 4 . | . . . . . . . Level 5 . | . . . . . . . High Security . | . . . . . . . Max Security . | . . . . . . . Peak Influence 316 | . 30 209 130 54 142 316 Initial 106 | . . 8 70 54 37 106 Average 102 | . 2 96 63 54 85 233 Influence Increases 1054 | . 35 414 180 . 185 240 Destroy 0b10 Robot/C 580 | . . 160 100 . 140 180 Destroy 0b10 Robot/NC 30 | . . 10 20 . . . Destroy Leader 104 | . . 40 24 . 30 10 Successful Hack 16 | . 5 5 6 . . . Disable Machine 30 | . . . 30 . . . Anti-Garrison Action 50 | . . . . . . 50 Destroy Structure 4 | . . 4 . . . . Partial Spotted 15 | . . 15 . . . . Lose Combat Pursuer 225 | . 30 180 . . 15 . Influence Decreases 808 | . 15 267 227 66 97 136 Entered New Map 228 | . . 12 97 66 17 36 Time Decay 300 | . 15 165 120 . . . Lost Part 270 | . . 80 10 . 80 100 Lost Ally 10 | . . 10 . . . . Squads Dispatched 5 | . 1 1 1 . 2 . Investigation 1 | . 1 . . . . . Extermination . | . . . . . . . Reinforcement 4 | . . 1 1 . 2 . Assault . | . . . . . . . Garrison . | . . . . . . . Intercept . | . . . . . . . Searches Triggered . | . . . . . . . Construction Impeded . | . . . . . . . Haulers Reinforced . | . . . . . . . Active Scanning Responses . | . . . . . . . Cargo Convoy Interrupts . | . . . . . . . Stealth | -11 -10 -9 -8 -7 -7 -7 --------- Run | Yrd Mat Mat Mat Fac DSF Gar Distress Signals 2 | . . 2 . . . . Communications Jammed . | . . . . . . . Distress Signals . | . . . . . . . Times Spotted 63 | . 8 22 8 . 13 12 Peak Tracking Total 10 | . 7 10 3 . 5 4 Tactical Retreats 8 | . 1 6 . . 1 . Traps | -11 -10 -9 -8 -7 -7 -7 ------- Run | Yrd Mat Mat Mat Fac DSF Gar Traps Triggered 4 | . 1 . . . 3 . Indirectly . | . . . . . . . Trap Hack Attempts . | . . . . . . . Triggered . | . . . . . . . Disarmed . | . . . . . . . Reprogrammed . | . . . . . . . Reused . | . . . . . . . Traps Extracted . | . . . . . . . Installed . | . . . . . . . Triggered . | . . . . . . . Machines | -11 -10 -9 -8 -7 -7 -7 ---------- Run | Yrd Mat Mat Mat Fac DSF Gar Machines Disabled 3 | . . . 2 . . 1 Max in Single Turn 1 | . . . 1 . . 1 Garrison Relay 2 | . . . . . . 2 Machines Repaired . | . . . . . . . Machines Dismantled . | . . . . . . . Machines Sabotaged . | . . . . . . . Overloaded Fab Kills . | . . . . . . . Hacking | -11 -10 -9 -8 -7 -7 -7 --------- Run | Yrd Mat Mat Mat Fac DSF Gar Machines Accessed 10 | . 2 3 3 1 . 1 Terminals 8 | . 1 3 2 1 . 1 Fabricators . | . . . . . . . Repair Stations . | . . . . . . . Recycling Units 1 | . 1 . . . . . Scanalyzers 1 | . . . 1 . . . Garrison Access . | . . . . . . . Total Hacks 31 | . 3 9 17 1 . 1 Successful 18 | . 2 5 10 1 . . Failed 11 | . 1 3 6 . . 1 Catastrophic 3 | . 1 . 1 . . 1 Database Lockouts 2 | . . 1 1 . . . Manual 19 | . 2 9 8 . . . Terminals 21 | . 2 9 8 1 . 1 Fabricators . | . . . . . . . Repair Stations . | . . . . . . . Recycling Units 1 | . 1 . . . . . Scanalyzers 9 | . . . 9 . . . Garrison Access . | . . . . . . . Terminal Hacks 5 | . . 3 1 1 . . Record 1 | . . 1 . . . . Open DSF 1 | . . . . 1 . . Level Access Points 2 | . . 1 1 . . . Branch Access Points 1 | . . 1 . . . . Fabricator Hacks . | . . . . . . . Repair Station Hacks . | . . . . . . . Recycling Unit Hacks 1 | . 1 . . . . . Report Inventory 1 | . 1 . . . . . Scanalyzer 8 | . . . 8 . . . Insert Component 3 | . . . 3 . . . Analyze 4 | . . . 4 . . . Retrieve Study 1 | . . . 1 . . . Garrison Access Hacks . | . . . . . . . Unauthorized Hacks 4 | . 1 2 1 . . . Terminals 4 | . 1 2 1 . . . Assimilate 1 | . . 1 . . . . Botnet 3 | . 1 1 1 . . . Fabricators . | . . . . . . . Repair Stations . | . . . . . . . Recycling Units . | . . . . . . . Scanalyzers . | . . . . . . . Garrison Access . | . . . . . . . Data Cores Recovered . | . . . . . . . Used . | . . . . . . . Hacking Detections 9 | . 1 3 3 1 . 1 Full Trace Events . | . . . . . . . Feedback Events . | . . . . . . . Feedback Blocked . | . . . . . . . Robot Schematics Acquired . | . . . . . . . Robots Built . | . . . . . . . Authchips . | . . . . . . . Time . | . . . . . . . Total Robot Build Rating . | . . . . . . . Part Schematics Acquired 2 | . . . 2 . . . Parts Built . | . . . . . . . Authchips . | . . . . . . . Time . | . . . . . . . Total Part Build Rating . | . . . . . . . Part Studies Acquired 1 | . . . 1 . . . Parts Repaired . | . . . . . . . Time . | . . . . . . . Parts Recycled . | . . . . . . . Recycled Matter . | . . . . . . . Retrieved Matter . | . . . . . . . Retrieved Components . | . . . . . . . Parts Scanalyzed 2 | . . . 2 . . . Part Schematics Acquired 2 | . . . 2 . . . Parts Damaged . | . . . . . . . Bothacking | -11 -10 -9 -8 -7 -7 -7 ------------ Run | Yrd Mat Mat Mat Fac DSF Gar Used RIF Installer . | . . . . . . . Robots Hacked . | . . . . . . . Non-combat . | . . . . . . . Combat . | . . . . . . . Robot Hacks Applied . | . . . . . . . Relay Couplers Released 11 | . . . . . . 11 Machine Destruction 8 | . . . . . . 8 Programmers 3 | . . . . . . 3 Fabnet Peak Effective % . | . . . . . . . Robots Rewired . | . . . . . . . Allies Hacked . | . . . . . . . Hacks Repelled . | . . . . . . . Allies | -11 -10 -9 -8 -7 -7 -7 -------- Run | Yrd Mat Mat Mat Fac DSF Gar Total Allies 1 | . . 1 . . . . Largest Group 1 | . . 1 . . . . Highest-Rated Group 10 | . . 10 . . . . Highest-Rated Ally 10 | . . 10 . . . . Total Orders 1 | . . 1 . . . . ROAM 1 | . . 1 . . . . Ally Attacks . | . . . . . . . Total Damage . | . . . . . . . Kills . | . . . . . . . Allies Corrupted . | . . . . . . . Allies Melted . | . . . . . . . Intel | -11 -10 -9 -8 -7 -7 -7 ------- Run | Yrd Mat Mat Mat Fac DSF Gar Active Infowar (turns) 560 | . . 305 255 . . . Terrain 560 | . . 305 255 . . . Robot Analysis Total . | . . . . . . . Derelict Logs Recovered . | . . . . . . . Drone Launches . | . . . . . . . Drone Recoveries . | . . . . . . . Exploration | -11 -10 -9 -8 -7 -7 -7 ------------- Run | Yrd Mat Mat Mat Fac DSF Gar Turns Passed 1524 | 77 147 465 255 9 263 308 Spaces Moved 880 | 58 123 322 110 3 92 172 Core 38 | 4 . 29 . . 4 1 Treads 242 | . . 82 110 3 47 . Legs 477 | 54 123 88 . . 41 171 Wheels . | . . . . . . . Hover . | . . . . . . . Flight 123 | . . 123 . . . . Fastest Speed 32 | 50 120 32 160 200 120 120 Average Speed 125 | 115 120 101 165 200 176 125 Slowest Speed 550 | 120 120 250 200 200 400 550 Overloaded Moves . | . . . . . . . Propulsion Burnouts . | . . . . . . . Robots Hopped . | . . . . . . . Potential Cave-ins . | . . . . . . . Cave-ins Triggered . | . . . . . . . Exploration Rate (%) 29 | 4 30 38 15 . 69 19 Regions Visited 6 Branch Regions . Pre-discovered Areas . | . . . . . . . Known Exits Taken 3 | . . 1 1 1 . . Unknown Exits Taken 2 | 1 1 . . . . . Scrap Searched . | . . . . . . . Spaces Dug . | . . . . . . . Terrain Destroyed 5 | . . 3 . . . 2 Melee . | . . . . . . . Projectile 2 | . . . . . . 2 AOE 3 | . . 3 . . . . Terrain Rammed . | . . . . . . . Walls Destroyed . | . . . . . . . Machines Disabled . | . . . . . . . Actions | -11 -10 -9 -8 -7 -7 -7 --------- Run | Yrd Mat Mat Mat Fac DSF Gar Total 1124 | 65 122 404 154 8 162 209 Wait 19 | . . 4 9 . 6 . Move 874 | 57 122 321 109 2 91 172 Hop . | . . . . . . . Pick Up 33 | 2 . 12 5 1 11 2 Fast Attach 33 | 5 . 14 1 . 13 . Attach 19 | 1 . 8 1 3 4 2 Detach 2 | . . 1 . . 1 . Swap 3 | . . 1 2 . . . Drop 27 | . . 10 7 2 7 1 Fire 97 | . . 28 20 . 21 28 Melee . | . . . . . . . Ram 3 | . . 3 . . . . Kick 6 | . . 2 . . . 4 Crush . | . . . . . . . Escape Stasis 8 | . . . . . 8 . Rewire . | . . . . . . . Trap . | . . . . . . . Miscellaneous . | . . . . . . . Route ------- -11/Scrapyard -10/Materials -9/Materials (discovered 4 exits: *Mat x3 / Min) -8/Materials (discovered 3 exits: *Fac x3) -7/Factory -7/DSF -7/Garrison History --------- Turn | Location | Event 3 | -11/Scrapyard | Discovered new exit (range 15) 78 | -11/Scrapyard | Entered Materials 210 | -10/Materials | Discovered new exit (range 13) 225 | -10/Materials | Entered another Materials area 225 | -9/Materials | Evolved 2 slots: Utility x2 425 | -9/Materials | Lost 6 parts (1p2n1u2w) 439 | -9/Materials | Identified exit to Materials 447 | -9/Materials | Identified exit to Mines 453 | -9/Materials | Central database locked down 481 | -9/Materials | Core integrity fell below 50% 690 | -9/Materials | Entered another Materials area 690 | -8/Materials | Evolved 2 slots: Propulsion x1, Utility x1 739 | -8/Materials | Identified exit to Factory 753 | -8/Materials | Central database locked down 806 | -8/Materials | Build established: Hacker-Mutant 945 | -8/Materials | Entered Factory 945 | -7/Factory | Evolved 2 slots: Weapon x2 954 | -7/Factory | Identified exit to DSF 954 | -7/Factory | Entered DSF 1013 | -7/DSF | Additional patrols routed to DSF 1113 | -7/DSF | Discovered new exit (range 15) 1123 | -7/DSF | Core integrity fell below 50% 1160 | -7/DSF | Lost 7 parts (1n6w) 1217 | -7/DSF | Entered Garrison 1233 | -7/Garrison | Triggered checkpoint 1279 | -7/Garrison | Triggered checkpoint 1342 | -7/Garrison | Garrison Relay disabled 1430 | -7/Garrison | Build established: Scavenger-Gunner 1501 | -7/Garrison | Garrison Relay disabled 1505 | -7/Garrison | Core integrity fell below 20% 1525 | -7/Garrison | Destroyed by X-62 Marksman with Gauss Rifle Last Messages --------------- 01511_ X-62 Marksman suffers critical hit (Blast). 01511_ Destroyed Core Analyzer. 01511_ X-62 Marksman knocked back. 01511_ Slug penetrates X-62 Marksman. 01511_ X-62 Marksman knocked back. 01512_ Flexi-carbon Leg destroyed. 01513_ Penetrated by Slug. 01514_ Acquired 2 matter. 01516_ Slug penetrates P-70 Sage. 01516_ Destroyed Imp. Remote Datajack. 01516_ Destroyed Antigrav System. 01516_ P-70 Sage Mic. Fission Core blasted off. 01516_ P-70 Sage destroyed. 01516_ Penetrated by Slug. 01516_ Flexi-carbon Leg destroyed. 01517_ System corrupted: Matter fused (-7). 01519_ Gauss Cannon destroyed. 01519_ Penetrated by Slug. 01522_ Gauss Cannon destroyed. Map ----- +----------------------------------------------------+ | ?????????????????????????????????????????????????? | | ???????????????+##"???#####??????????????????????? | | ??????????????? ??? #?????????????????????? | | ??????????????? ?? ?????????????????????? | | ???????????????? ?? ?????????????????????? | | ????????????? ??# ?# #?????????????????????? | | ?????????????? ## ## #?????????????????????? | | ????????????? "?????????????????????? | | ????????????? "?????????????????????? | | ?????????????? "?????????????????????? | | ???????????????? ? "?????????????????????? | | ????????????# ???# ?# #?????????????????????? | | ????????????# ## ## ###########???????????? | | ????????????# #???????????? | | ????????????# #???????????? | | ????????????# ######## #???????????? | | ????????????# ##""""## ##??????# #???????????? | | ???????????????????????# #???????# #???????????? | | ???????????????????????# %#???????# #???????????? | | ???????????????????????# %#???????# #???????????? | | ???????????????????????#= #???????# #???????????? | | ???????????????????????# #???????# #???????????? | | ???????????????????????# #???????# =#???????????? | | ???????????????????????#x ###?????# #???????????? | | ???????????????????????# %% #?????#[[#???????????? | | ???????????????????????# @ #?????#! #???????????? | | ???????????????????????#!! #?????# #???????????? | | ?????????????????????###!*###?????# #???????????? | | ?????????????????????# # x#???????# #???????????? | | ?????????????????????# !!%#???????# #???????????? | | ?????????????????????# !! #???????# #???????????? | | ?????????????????????# #???????# #???????##### | | ?????????????????????# # #???????# #???????# # | | ?????????????????????#### #???????# ######### # | | ????????????????????????# #???????# | | ????????????????????????# #???????# | | ????????????????????????# #???????################ | | ????????????????????????# "??????????????????????? | | ????????????????????????# "??????????????????????? | | ????????????????????????# "#?????????????????????? | | ????????????????????????# "#?????????????????????? | | ????????????????????????##"#?????????????????????? | | ??????????????????????????##??????????????????#### | | ??????????????????????????????????????????????#""# | | ??????????????????????????????????????????????# T# | | ??????????????????????????????????????????????# "# | | ??????????????????????????????????????????????# ## | | ??????????????????????????????????????????????# ## | | ??????????????????????????????????????????????# | | ??????????????????????????????????????????????# | +----------------------------------------------------+ Best States ------------- Heat Dissipation 34 Energy Generation 18 Energy Capacity 300 Matter Stores 300 Matter Capacity 300 Sight Range 16 Terrain Scan Range 16 Terrain Scan Density 85 Weapon Cycling 30 Evasion (%) 63 Targeting Accuracy 14 Target Analysis 5 Recoil Reduction 2 Kinecelleration 30 Offensive Hacking 30 Authchip Count 1 Item Schematics ----------------- Imp. Assault Rifle | -8/Materials | Scanalyzed Hacking Suite | -8/Materials | Scanalyzed Robot Schematics ------------------ None Fabricated ------------ Nothing Repaired ---------- Nothing Studied --------- Lgt. Treads | -8/Materials | Hacked Alien Tech Used ----------------- None Achievements -------------- None Challenges ------------ None Game ------ Seed WeaponTripodLink Manual? 0 Play Time 00:25:30 Cumulative 16.8 hours Start 2026.06.27 @ 21:16:27 End 2026.06.27 @ 21:41:18 Sessions 1 Manual Loads 0 Difficulty Rogue Special Mode None Game No. 16 Rogue 16 Adventurer 0 Explorer 0 Win Type - Total 1 Types 1/0/0/0/0/0/0/0/0/0 Lore% 9 Gallery% 20 Achievement% 17 Wizard Run 0 Options --------- Layout 1 ASCII 0 Keyboard 0 Movement Mouse Keybinds 1 Fullscreen 2 Font 24/Smallcaps Map View 50x40 Zoom Use 0% Tactical HUD 1 Map Filters NONE Filters NONE Steam 1 RUN: 6b094a08-98f0-4ff7-bed3-65878336d471